[Event "Early-Titled-Tuesday-Blitz-April-02-2024"]
[Site "Chess.com"]
[Date "2024.04.02"]
[Round "4"]
[White "DefenceWinsChampionships"]
[Black "Blackwhite017"]
[Result "1-0"]
[WhiteElo "2318"]
[BlackElo "2075"]
[TimeControl "180+1"]
[EndTime "8:38:34 PDT"]
[Termination "DefenceWinsChampionships won on time"]

1. e4 {[%clk 0:02:59]} 1... c5 {[%clk 0:02:59.7]} 2. c3 {[%clk 0:02:58.8]} 2...
Nf6 {[%clk 0:02:59.6]} 3. e5 {[%clk 0:02:58.6]} 3... Nd5 {[%clk 0:02:59.1]} 4.
d4 {[%clk 0:02:59.3]} 4... cxd4 {[%clk 0:02:58.7]} 5. Nf3 {[%clk 0:03:00]} 5...
Nc6 {[%clk 0:02:57.7]} 6. cxd4 {[%clk 0:03:00.1]} 6... d6 {[%clk 0:02:56.5]} 7.
Bc4 {[%clk 0:02:59.9]} 7... Nb6 {[%clk 0:02:56.1]} 8. Bb3 {[%clk 0:02:59.9]}
8... dxe5 {[%clk 0:02:52.5]} 9. d5 {[%clk 0:03:00.1]} 9... Na5 {[%clk
0:02:52.5]} 10. Nc3 {[%clk 0:03:00.3]} 10... Nxb3 {[%clk 0:02:42.4]} 11. Qxb3
{[%clk 0:02:59.8]} 11... e6 {[%clk 0:02:38.9]} 12. dxe6 {[%clk 0:02:22]} 12...
Bxe6 {[%clk 0:02:37.6]} 13. Qb5+ {[%clk 0:02:22.1]} 13... Qd7 {[%clk 0:02:22.6]}
14. Qxe5 {[%clk 0:01:42.5]} 14... Bd6 {[%clk 0:02:20]} 15. Qxg7 {[%clk
0:01:38.3]} 15... O-O-O {[%clk 0:02:18.9]} 16. Be3 {[%clk 0:01:30]} 16... Rhg8
{[%clk 0:01:59.7]} 17. Qd4 {[%clk 0:01:13]} 17... Rxg2 {[%clk 0:01:40]} 18. Ne4
{[%clk 0:00:38]} 18... Rg4 {[%clk 0:00:21.7]} 19. Nxd6+ {[%clk 0:00:12.6]} 19...
Qxd6 {[%clk 0:00:22.6]} 20. Qxd6 {[%clk 0:00:12.7]} 20... Rxd6 {[%clk
0:00:23.3]} 21. Rc1+ {[%clk 0:00:12.4]} 21... Kb8 {[%clk 0:00:19.9]} 22. Ne5
{[%clk 0:00:11.5]} 22... Rb4 {[%clk 0:00:06.2]} 23. Rg1 {[%clk 0:00:08]} 1-0

[Event "Early-Titled-Tuesday-Blitz-April-02-2024"]
[Site "Chess.com"]
[Date "2024.04.02"]
[Round "4"]
[White "zverr1"]
[Black "ChristianArca"]
[Result "1-0"]
[WhiteElo "2563"]
[BlackElo "2667"]
[TimeControl "180+1"]
[EndTime "8:38:38 PDT"]
[Termination "zverr1 won on time"]

1. e4 {[%clk 0:03:00.9]} 1... c6 {[%clk 0:02:47.5]} 2. d4 {[%clk 0:03:00.7]}
2... d5 {[%clk 0:02:48.4]} 3. Nc3 {[%clk 0:03:00.5]} 3... dxe4 {[%clk
0:02:48.4]} 4. Nxe4 {[%clk 0:02:59.7]} 4... Bf5 {[%clk 0:02:42.9]} 5. Ng3 {[%clk
0:02:59.7]} 5... Bg6 {[%clk 0:02:41.5]} 6. h4 {[%clk 0:03:00.2]} 6... h6 {[%clk
0:02:41.6]} 7. N1e2 {[%clk 0:02:59.9]} 7... e6 {[%clk 0:02:36.6]} 8. Nf4 {[%clk
0:02:59.5]} 8... Bh7 {[%clk 0:02:36.8]} 9. Bc4 {[%clk 0:02:58.7]} 9... Nf6
{[%clk 0:02:32.4]} 10. Nfh5 {[%clk 0:02:58.9]} 10... Nbd7 {[%clk 0:02:25.9]} 11.
c3 {[%clk 0:02:58.8]} 11... Nxh5 {[%clk 0:02:24]} 12. Nxh5 {[%clk 0:02:59.7]}
12... Nf6 {[%clk 0:02:24.9]} 13. Bf4 {[%clk 0:03:00.3]} 13... Nxh5 {[%clk
0:02:12.7]} 14. Qxh5 {[%clk 0:03:01.2]} 14... Bd6 {[%clk 0:02:13.4]} 15. Bxd6
{[%clk 0:02:59.6]} 15... Qxd6 {[%clk 0:02:13.2]} 16. O-O {[%clk 0:03:00.3]}
16... O-O {[%clk 0:02:11.2]} 17. Rfe1 {[%clk 0:02:59.2]} 17... Qf4 {[%clk
0:02:00.5]} 18. g3 {[%clk 0:02:48.4]} 18... Qd6 {[%clk 0:01:57.6]} 19. a4 {[%clk
0:02:43.8]} 19... Rfd8 {[%clk 0:01:52.5]} 20. Re5 {[%clk 0:02:43.2]} 20... Bg6
{[%clk 0:01:29.9]} 21. Qe2 {[%clk 0:02:35.8]} 21... Rac8 {[%clk 0:01:11.6]} 22.
Re1 {[%clk 0:02:35.4]} 22... Bf5 {[%clk 0:00:56.9]} 23. b4 {[%clk 0:02:30.1]}
23... b6 {[%clk 0:00:56.1]} 24. Qh5 {[%clk 0:01:55.3]} 24... Bg6 {[%clk
0:00:47.7]} 25. Qe2 {[%clk 0:01:53.7]} 25... Bh7 {[%clk 0:00:45.7]} 26. Qh5
{[%clk 0:01:41.7]} 26... Bc2 {[%clk 0:00:36]} 27. Rxe6 {[%clk 0:01:16.3]} 27...
fxe6 {[%clk 0:00:36]} 28. Rxe6 {[%clk 0:01:17.2]} 28... Kh8 {[%clk 0:00:02.3]}
29. Rxd6 {[%clk 0:01:13.9]} 29... Rxd6 {[%clk 0:00:03.2]} 30. Qe5 {[%clk
0:00:44.3]} 30... Rcd8 {[%clk 0:00:02.9]} 31. Qe2 {[%clk 0:00:34.3]} 31... Bxa4
{[%clk 0:00:02.2]} 32. Qe4 {[%clk 0:00:32.7]} 32... Bb5 {[%clk 0:00:02]} 33. Bb3
{[%clk 0:00:32.4]} 1-0

[Event "Early-Titled-Tuesday-Blitz-April-02-2024"]
[Site "Chess.com"]
[Date "2024.04.02"]
[Round "4"]
[White "PIwan"]
[Black "AsterPhoenix"]
[Result "1-0"]
[WhiteElo "2447"]
[BlackElo "2644"]
[TimeControl "180+1"]
[EndTime "8:38:40 PDT"]
[Termination "PIwan won by resignation"]

1. c4 {[%clk 0:02:59.2]} 1... e6 {[%clk 0:02:56.4]} 2. Nc3 {[%clk 0:02:59.2]}
2... d5 {[%clk 0:02:56.8]} 3. d4 {[%clk 0:02:59.4]} 3... Nf6 {[%clk 0:02:57.2]}
4. cxd5 {[%clk 0:02:59.4]} 4... exd5 {[%clk 0:02:58.1]} 5. Bg5 {[%clk
0:02:59.8]} 5... Bb4 {[%clk 0:02:57.6]} 6. e3 {[%clk 0:03:00]} 6... h6 {[%clk
0:02:56.8]} 7. Bxf6 {[%clk 0:02:56.5]} 7... Qxf6 {[%clk 0:02:56.5]} 8. Qa4+
{[%clk 0:02:57.4]} 8... Nc6 {[%clk 0:02:56.4]} 9. Nf3 {[%clk 0:02:57.8]} 9...
O-O {[%clk 0:02:51.4]} 10. Bb5 {[%clk 0:02:52.7]} 10... Bh3 {[%clk 0:01:47.8]}
11. O-O {[%clk 0:02:35.8]} 11... Bxc3 {[%clk 0:01:33.5]} 12. bxc3 {[%clk
0:02:33.4]} 12... Ne7 {[%clk 0:01:26.3]} 13. Ne5 {[%clk 0:02:24.5]} 13... Qg5
{[%clk 0:01:22.7]} 14. g3 {[%clk 0:02:07.4]} 14... c6 {[%clk 0:01:22.7]} 15. Bd3
{[%clk 0:01:56.1]} 15... Bxf1 {[%clk 0:01:19.7]} 16. Rxf1 {[%clk 0:01:57]} 16...
Ng6 {[%clk 0:00:58.8]} 17. Bxg6 {[%clk 0:01:46.6]} 17... fxg6 {[%clk 0:00:59.7]}
18. f4 {[%clk 0:01:46.9]} 18... Qe7 {[%clk 0:00:57.8]} 19. c4 {[%clk 0:01:41]}
19... Kh7 {[%clk 0:00:52.7]} 20. Qc2 {[%clk 0:01:37.9]} 20... Rf6 {[%clk
0:00:51.8]} 21. cxd5 {[%clk 0:01:25.6]} 21... cxd5 {[%clk 0:00:51.2]} 22. Rc1
{[%clk 0:01:25.4]} 22... Rd8 {[%clk 0:00:42.4]} 23. h4 {[%clk 0:01:25.3]} 23...
h5 {[%clk 0:00:40.3]} 24. Kf2 {[%clk 0:01:24.1]} 24... Rdd6 {[%clk 0:00:34.4]}
25. Qb3 {[%clk 0:01:17.2]} 25... Qe6 {[%clk 0:00:20.2]} 26. Rc7 {[%clk
0:01:03.1]} 26... Rb6 {[%clk 0:00:19]} 27. Qa3 {[%clk 0:00:43.6]} 27... Qh3
{[%clk 0:00:18.9]} 28. Nf3 {[%clk 0:00:44.1]} 28... Rfc6 {[%clk 0:00:16.5]} 29.
Rxc6 {[%clk 0:00:38.1]} 29... Qf5 {[%clk 0:00:14.6]} 30. Rxb6 {[%clk 0:00:36.6]}
30... axb6 {[%clk 0:00:15.5]} 31. Qb2 {[%clk 0:00:34.9]} 31... Qd3 {[%clk
0:00:13.6]} 32. Ne5 {[%clk 0:00:32.5]} 32... Qa6 {[%clk 0:00:13]} 33. Qc2 {[%clk
0:00:31.2]} 33... Kh8 {[%clk 0:00:12.8]} 34. Nxg6+ {[%clk 0:00:30.8]} 34... Kg8
{[%clk 0:00:12.9]} 35. Ne7+ {[%clk 0:00:29.8]} 35... Kf7 {[%clk 0:00:13]} 36.
Nxd5 {[%clk 0:00:30.3]} 36... Qa5 {[%clk 0:00:12.4]} 37. Qf5+ {[%clk 0:00:30.1]}
37... Ke8 {[%clk 0:00:12.2]} 38. Nc7+ {[%clk 0:00:27.4]} 1-0

[Event "Early-Titled-Tuesday-Blitz-April-02-2024"]
[Site "Chess.com"]
[Date "2024.04.02"]
[Round "4"]
[White "Dewarfd"]
[Black "kai_nov"]
[Result "0-1"]
[WhiteElo "2116"]
[BlackElo "2340"]
[TimeControl "180+1"]
[EndTime "8:38:40 PDT"]
[Termination "kai_nov won by resignation"]

1. c4 {[%clk 0:03:00.9]} 1... e5 {[%clk 0:02:57.8]} 2. Nc3 {[%clk 0:02:59.1]}
2... Nf6 {[%clk 0:02:56.5]} 3. g3 {[%clk 0:02:59]} 3... Nc6 {[%clk 0:02:52.2]}
4. Bg2 {[%clk 0:02:57.5]} 4... Bb4 {[%clk 0:02:50]} 5. Nd5 {[%clk 0:02:56.2]}
5... O-O {[%clk 0:02:48.2]} 6. Nxb4 {[%clk 0:02:55.3]} 6... Nxb4 {[%clk
0:02:47]} 7. d4 {[%clk 0:02:50.7]} 7... exd4 {[%clk 0:02:44.7]} 8. a3 {[%clk
0:02:41.9]} 8... Nc6 {[%clk 0:02:41.4]} 9. Nf3 {[%clk 0:02:41.6]} 9... d5 {[%clk
0:02:33.4]} 10. Nxd4 {[%clk 0:02:39.8]} 10... Nxd4 {[%clk 0:02:31.9]} 11. Qxd4
{[%clk 0:02:38.8]} 11... dxc4 {[%clk 0:02:31.8]} 12. Qxc4 {[%clk 0:02:34.4]}
12... Be6 {[%clk 0:02:30.5]} 13. Qc2 {[%clk 0:02:31.2]} 13... c6 {[%clk
0:02:19]} 14. O-O {[%clk 0:02:30.5]} 14... Bd5 {[%clk 0:02:17.2]} 15. Rd1 {[%clk
0:02:15]} 15... Qe7 {[%clk 0:02:04.6]} 16. Bg5 {[%clk 0:02:04.6]} 16... Bxg2
{[%clk 0:02:02.4]} 17. Kxg2 {[%clk 0:02:03.6]} 17... Qe4+ {[%clk 0:02:01.8]} 18.
Qxe4 {[%clk 0:02:01.1]} 18... Nxe4 {[%clk 0:02:02.1]} 19. Be3 {[%clk 0:01:54.5]}
19... b6 {[%clk 0:01:56.3]} 20. Rd7 {[%clk 0:01:51.1]} 20... Rfd8 {[%clk
0:01:53.6]} 21. Rad1 {[%clk 0:01:49]} 21... Rxd7 {[%clk 0:01:21.3]} 22. Rxd7
{[%clk 0:01:47.5]} 22... Nf6 {[%clk 0:01:21.4]} 23. Rc7 {[%clk 0:01:43.2]} 23...
c5 {[%clk 0:01:21.6]} 24. Bg5 {[%clk 0:01:42.3]} 24... Nd5 {[%clk 0:01:20.5]}
25. Rd7 {[%clk 0:01:38.2]} 25... Nf6 {[%clk 0:01:20.3]} 26. Bxf6 {[%clk
0:01:38.3]} 26... gxf6 {[%clk 0:01:20.4]} 27. e4 {[%clk 0:01:33.5]} 27... Kf8
{[%clk 0:01:20.7]} 28. f4 {[%clk 0:01:30.9]} 28... Ke8 {[%clk 0:01:21]} 29. Rd5
{[%clk 0:01:30.8]} 29... Rd8 {[%clk 0:01:18.5]} 30. Kf3 {[%clk 0:00:58.3]} 30...
Rxd5 {[%clk 0:01:16.2]} 31. exd5 {[%clk 0:00:59.2]} 31... f5 {[%clk 0:01:14.1]}
32. h3 {[%clk 0:00:52.4]} 32... Kd7 {[%clk 0:01:13.9]} 33. g4 {[%clk 0:00:52.2]}
33... Kd6 {[%clk 0:01:12]} 34. Kg3 {[%clk 0:00:45.8]} 34... fxg4 {[%clk
0:01:09.9]} 35. Kxg4 {[%clk 0:00:44.1]} 35... Kxd5 {[%clk 0:01:10.2]} 36. Kf5
{[%clk 0:00:44.8]} 36... b5 {[%clk 0:01:07]} 37. h4 {[%clk 0:00:38.6]} 37... a5
{[%clk 0:01:06.1]} 38. h5 {[%clk 0:00:38.8]} 38... b4 {[%clk 0:00:59.9]} 39. Kf6
{[%clk 0:00:38.8]} 39... c4 {[%clk 0:00:55.6]} 40. Kxf7 {[%clk 0:00:36.8]} 40...
c3 {[%clk 0:00:55.6]} 41. bxc3 {[%clk 0:00:36]} 41... bxc3 {[%clk 0:00:54.7]}
42. Kg7 {[%clk 0:00:26.9]} 42... c2 {[%clk 0:00:54]} 43. Kxh7 {[%clk 0:00:27.2]}
43... c1=Q {[%clk 0:00:54.3]} 44. h6 {[%clk 0:00:27.3]} 44... Qxf4 {[%clk
0:00:54.2]} 45. a4 {[%clk 0:00:26.2]} 45... Qxa4 {[%clk 0:00:51]} 46. Kh8 {[%clk
0:00:24.8]} 46... Qd4+ {[%clk 0:00:49.4]} 47. Kg8 {[%clk 0:00:23.2]} 47... Qg4+
{[%clk 0:00:49.2]} 48. Kh8 {[%clk 0:00:22.3]} 48... a4 {[%clk 0:00:44.3]} 49. h7
{[%clk 0:00:20.7]} 49... Qd4+ {[%clk 0:00:44.7]} 50. Kg8 {[%clk 0:00:20.6]}
50... a3 {[%clk 0:00:44.8]} 0-1

[Event "Early-Titled-Tuesday-Blitz-April-02-2024"]
[Site "Chess.com"]
[Date "2024.04.02"]
[Round "4"]
[White "bilelou"]
[Black "ploxoi"]
[Result "1-0"]
[WhiteElo "2663"]
[BlackElo "2440"]
[TimeControl "180+1"]
[EndTime "8:38:41 PDT"]
[Termination "bilelou won by resignation"]

1. e4 {[%clk 0:03:00.9]} 1... e6 {[%clk 0:02:59.1]} 2. d4 {[%clk 0:02:59.2]}
2... d5 {[%clk 0:03:00]} 3. e5 {[%clk 0:02:59.7]} 3... c5 {[%clk 0:02:59.9]} 4.
c3 {[%clk 0:03:00.6]} 4... Nc6 {[%clk 0:03:00.3]} 5. g3 {[%clk 0:03:01]} 5...
Qb6 {[%clk 0:02:55.3]} 6. Ne2 {[%clk 0:03:01.1]} 6... Bd7 {[%clk 0:02:52.3]} 7.
Bh3 {[%clk 0:03:01]} 7... Rc8 {[%clk 0:02:49.6]} 8. O-O {[%clk 0:03:01.2]} 8...
Na5 {[%clk 0:02:34.2]} 9. dxc5 {[%clk 0:02:56.4]} 9... Qc7 {[%clk 0:02:28.3]}
10. b4 {[%clk 0:02:53]} 10... Nc4 {[%clk 0:02:26.8]} 11. f4 {[%clk 0:02:51.8]}
11... a5 {[%clk 0:02:25.5]} 12. Na3 {[%clk 0:02:43.4]} 12... Nxa3 {[%clk
0:02:19.7]} 13. Bxa3 {[%clk 0:02:42.3]} 13... Bb5 {[%clk 0:02:20.1]} 14. Nd4
{[%clk 0:02:40]} 14... Bxf1 {[%clk 0:02:17.7]} 15. Bxf1 {[%clk 0:02:40.9]} 15...
Ne7 {[%clk 0:02:16.7]} 16. Qa4+ {[%clk 0:02:31.3]} 16... Nc6 {[%clk 0:02:13.3]}
17. b5 {[%clk 0:02:30.8]} 17... Nxd4 {[%clk 0:02:13.3]} 18. cxd4 {[%clk
0:02:31.7]} 18... b6 {[%clk 0:02:06.6]} 19. Rc1 {[%clk 0:02:27.3]} 19... Qd8
{[%clk 0:01:50.1]} 20. Bd3 {[%clk 0:02:07.4]} 20... Be7 {[%clk 0:01:47.3]} 21.
Kg2 {[%clk 0:02:06.6]} 21... g6 {[%clk 0:01:38.7]} 22. h4 {[%clk 0:01:52.2]}
22... h5 {[%clk 0:01:38.4]} 23. Qc2 {[%clk 0:01:50.7]} 23... Kf8 {[%clk
0:01:36.1]} 24. Bxg6 {[%clk 0:01:16.6]} 24... fxg6 {[%clk 0:00:47.9]} 25. Qxg6
{[%clk 0:01:15.3]} 25... Qd7 {[%clk 0:00:48.5]} 26. c6 {[%clk 0:01:10.9]} 26...
Qe8 {[%clk 0:00:34]} 27. Qf6+ {[%clk 0:01:08.1]} 27... Kg8 {[%clk 0:00:33.5]}
28. Bxe7 {[%clk 0:01:06.7]} 28... Qf7 {[%clk 0:00:30.4]} 29. c7 {[%clk
0:01:01.7]} 29... Qxf6 {[%clk 0:00:27.3]} 30. Bxf6 {[%clk 0:00:58.5]} 30... Rh7
{[%clk 0:00:26.4]} 31. Bd8 {[%clk 0:00:59]} 31... Rd7 {[%clk 0:00:24.8]} 32. Rc6
{[%clk 0:00:59.2]} 32... Kf7 {[%clk 0:00:20.9]} 33. Kf3 {[%clk 0:00:56.7]} 33...
a4 {[%clk 0:00:21]} 34. a3 {[%clk 0:00:51.5]} 34... Rdxd8 {[%clk 0:00:19.9]} 35.
cxd8=Q {[%clk 0:00:50.8]} 35... Rxd8 {[%clk 0:00:20.8]} 36. Rxb6 {[%clk
0:00:50.1]} 36... Rc8 {[%clk 0:00:20.9]} 37. Rc6 {[%clk 0:00:50.4]} 37... Ra8
{[%clk 0:00:20.9]} 38. Ke3 {[%clk 0:00:48.1]} 38... Ra5 {[%clk 0:00:19.9]} 39.
Rc5 {[%clk 0:00:46.7]} 39... Ke7 {[%clk 0:00:20.1]} 40. Kd3 {[%clk 0:00:46.9]}
40... Kd7 {[%clk 0:00:20.3]} 41. Kc3 {[%clk 0:00:47.3]} 41... Ra8 {[%clk
0:00:20.1]} 42. Kb4 {[%clk 0:00:48.2]} 42... Rg8 {[%clk 0:00:19.9]} 43. Rc3
{[%clk 0:00:48]} 43... Ra8 {[%clk 0:00:19.9]} 44. b6 {[%clk 0:00:46.8]} 44...
Rb8 {[%clk 0:00:18.5]} 45. Kb5 {[%clk 0:00:45.8]} 45... Kd8 {[%clk 0:00:18.1]}
46. Rc7 {[%clk 0:00:45.9]} 46... Ke8 {[%clk 0:00:14.3]} 47. Rh7 {[%clk
0:00:45.4]} 1-0

[Event "Early-Titled-Tuesday-Blitz-April-02-2024"]
[Site "Chess.com"]
[Date "2024.04.02"]
[Round "4"]
[White "LionKing2367890"]
[Black "Grossboss19"]
[Result "0-1"]
[WhiteElo "2282"]
[BlackElo "2571"]
[TimeControl "180+1"]
[EndTime "8:38:41 PDT"]
[Termination "Grossboss19 won on time"]

1. e4 {[%clk 0:03:00.9]} 1... e6 {[%clk 0:02:53.4]} 2. d4 {[%clk 0:02:59.8]}
2... Ne7 {[%clk 0:02:38.7]} 3. Nd2 {[%clk 0:02:56.3]} 3... d5 {[%clk 0:02:33.7]}
4. exd5 {[%clk 0:02:55.7]} 4... exd5 {[%clk 0:02:33.6]} 5. f4 {[%clk 0:02:51.9]}
5... h5 {[%clk 0:02:31.5]} 6. Ndf3 {[%clk 0:02:51.7]} 6... Bg4 {[%clk
0:02:31.1]} 7. Bd3 {[%clk 0:02:51.9]} 7... Nd7 {[%clk 0:02:30.3]} 8. h3 {[%clk
0:02:52.3]} 8... Bxf3 {[%clk 0:02:29.9]} 9. Nxf3 {[%clk 0:02:52.1]} 9... Nf6
{[%clk 0:02:30.2]} 10. O-O {[%clk 0:02:51.8]} 10... Qd6 {[%clk 0:02:30]} 11. c3
{[%clk 0:02:51.6]} 11... O-O-O {[%clk 0:02:29.8]} 12. a4 {[%clk 0:02:50.2]}
12... Nc6 {[%clk 0:02:21.4]} 13. b4 {[%clk 0:02:47.6]} 13... Ne4 {[%clk
0:02:21.7]} 14. Bxe4 {[%clk 0:02:41]} 14... dxe4 {[%clk 0:02:18.3]} 15. Ne5
{[%clk 0:02:41.7]} 15... Qd5 {[%clk 0:02:08.1]} 16. Be3 {[%clk 0:02:30.4]} 16...
f6 {[%clk 0:02:01.7]} 17. c4 {[%clk 0:02:19.5]} 17... Qd6 {[%clk 0:01:59.1]} 18.
Nf7 {[%clk 0:02:12.9]} 18... Qxb4 {[%clk 0:01:51.2]} 19. Nxh8 {[%clk 0:02:12.3]}
19... Qxc4 {[%clk 0:01:51.6]} 20. Ng6 {[%clk 0:02:09.4]} 20... Bb4 {[%clk
0:01:50.6]} 21. Rc1 {[%clk 0:02:06]} 21... Qa2 {[%clk 0:01:41.1]} 22. Qxh5
{[%clk 0:01:47.9]} 22... Qb3 {[%clk 0:01:36.8]} 23. Qf5+ {[%clk 0:01:42.9]}
23... Kb8 {[%clk 0:01:30.4]} 24. Qxe4 {[%clk 0:01:43]} 24... Qf7 {[%clk
0:01:30.1]} 25. d5 {[%clk 0:01:15.5]} 25... Re8 {[%clk 0:01:22.1]} 26. Qd3
{[%clk 0:01:05.5]} 26... Na5 {[%clk 0:01:12.8]} 27. f5 {[%clk 0:00:27.1]} 27...
b6 {[%clk 0:01:09]} 28. Bf4 {[%clk 0:00:21]} 28... Bc5+ {[%clk 0:01:06.7]} 29.
Rxc5 {[%clk 0:00:20.1]} 29... bxc5 {[%clk 0:01:07.6]} 30. Qb5+ {[%clk
0:00:19.8]} 30... Kc8 {[%clk 0:01:03.7]} 31. Qxa5 {[%clk 0:00:19.6]} 31... Qxd5
{[%clk 0:01:04.3]} 32. Qa6+ {[%clk 0:00:18.1]} 32... Kd8 {[%clk 0:01:01.1]} 33.
Qxa7 {[%clk 0:00:16.1]} 33... Qd4+ {[%clk 0:01:00.6]} 34. Kh1 {[%clk 0:00:16]}
34... Qd7 {[%clk 0:00:58.4]} 35. Qxc5 {[%clk 0:00:13.3]} 35... Re4 {[%clk
0:00:55.8]} 36. Qf8+ {[%clk 0:00:10.4]} 36... Re8 {[%clk 0:00:54.8]} 37. Qb4
{[%clk 0:00:10.3]} 37... Qxf5 {[%clk 0:00:52.3]} 38. Rd1+ {[%clk 0:00:09.4]}
38... Kc8 {[%clk 0:00:52.5]} 39. Rc1 {[%clk 0:00:02.7]} 39... Kd7 {[%clk
0:00:38.9]} 40. Rxc7+ {[%clk 0:00:02.1]} 40... Ke6 {[%clk 0:00:39.8]} 0-1

[Event "Early-Titled-Tuesday-Blitz-April-02-2024"]
[Site "Chess.com"]
[Date "2024.04.02"]
[Round "4"]
[White "Kotofeyca"]
[Black "Bykov_Egor"]
[Result "1/2-1/2"]
[WhiteElo "2501"]
[BlackElo "2652"]
[TimeControl "180+1"]
[EndTime "8:38:42 PDT"]
[Termination "Game drawn by repetition"]

1. d4 {[%clk 0:03:00.9]} 1... Nf6 {[%clk 0:02:59.2]} 2. c4 {[%clk 0:03:00.5]}
2... c6 {[%clk 0:02:58.8]} 3. Nc3 {[%clk 0:02:59.9]} 3... d5 {[%clk 0:02:59.5]}
4. cxd5 {[%clk 0:02:59.9]} 4... cxd5 {[%clk 0:03:00.4]} 5. Bf4 {[%clk
0:02:59.9]} 5... Nc6 {[%clk 0:03:01]} 6. e3 {[%clk 0:03:00.5]} 6... a6 {[%clk
0:03:00.8]} 7. Nf3 {[%clk 0:03:00.3]} 7... Bg4 {[%clk 0:02:59.7]} 8. h3 {[%clk
0:03:00.8]} 8... Bh5 {[%clk 0:02:58.1]} 9. g4 {[%clk 0:03:00.7]} 9... Bg6 {[%clk
0:02:57.6]} 10. Ne5 {[%clk 0:03:01.3]} 10... Nxe5 {[%clk 0:02:19.9]} 11. dxe5
{[%clk 0:02:52.8]} 11... Ne4 {[%clk 0:02:19.4]} 12. Qxd5 {[%clk 0:02:23.9]}
12... e6 {[%clk 0:02:06.9]} 13. Qxd8+ {[%clk 0:01:50.3]} 13... Rxd8 {[%clk
0:02:07.8]} 14. f3 {[%clk 0:01:02]} 14... Nxc3 {[%clk 0:01:27.2]} 15. bxc3
{[%clk 0:01:02]} 15... Ba3 {[%clk 0:01:26.1]} 16. Rh2 {[%clk 0:01:02.1]} 16...
Bd3 {[%clk 0:01:20.2]} 17. Bg5 {[%clk 0:00:43]} 17... Rd7 {[%clk 0:01:11.2]} 18.
Rd1 {[%clk 0:00:35.6]} 18... Bxf1 {[%clk 0:01:06.2]} 19. Rxd7 {[%clk 0:00:36.5]}
19... Kxd7 {[%clk 0:01:05.9]} 20. Rd2+ {[%clk 0:00:37.1]} 20... Kc6 {[%clk
0:00:54.7]} 21. Kxf1 {[%clk 0:00:37]} 21... b5 {[%clk 0:00:53.4]} 22. e4 {[%clk
0:00:29.3]} 22... Rc8 {[%clk 0:00:52.6]} 23. Rd3 {[%clk 0:00:25]} 23... Rc7
{[%clk 0:00:39.9]} 24. Ke2 {[%clk 0:00:24.5]} 24... Rd7 {[%clk 0:00:33.1]} 25.
Rxd7 {[%clk 0:00:23.8]} 25... Kxd7 {[%clk 0:00:34]} 26. Kd3 {[%clk 0:00:23.6]}
26... Kc6 {[%clk 0:00:30.7]} 27. c4 {[%clk 0:00:22.9]} 27... Bb2 {[%clk
0:00:30.8]} 28. cxb5+ {[%clk 0:00:21.8]} 28... Kxb5 {[%clk 0:00:30.7]} 29. f4
{[%clk 0:00:22.3]} 29... g6 {[%clk 0:00:25.1]} 30. Be7 {[%clk 0:00:22.3]} 30...
Bc1 {[%clk 0:00:24.7]} 31. f5 {[%clk 0:00:20.5]} 31... Bb2 {[%clk 0:00:25.3]}
32. fxe6 {[%clk 0:00:19.5]} 32... fxe6 {[%clk 0:00:24.9]} 33. Bd6 {[%clk
0:00:20.4]} 33... Bc1 {[%clk 0:00:23.7]} 34. Kc3 {[%clk 0:00:19.4]} 34... Bf4
{[%clk 0:00:23]} 35. Kb3 {[%clk 0:00:19.7]} 35... Bd2 {[%clk 0:00:21.9]} 36. a4+
{[%clk 0:00:20.1]} 36... Kc6 {[%clk 0:00:22.3]} 37. Kc4 {[%clk 0:00:20.5]} 37...
Bf4 {[%clk 0:00:22.4]} 38. Bb8 {[%clk 0:00:20]} 38... Bd2 {[%clk 0:00:22.2]} 39.
Bd6 {[%clk 0:00:19.8]} 39... Bf4 {[%clk 0:00:22.7]} 40. Bb8 {[%clk 0:00:18.8]}
40... Bd2 {[%clk 0:00:23.2]} 41. Bd6 {[%clk 0:00:18.7]} 1/2-1/2

[Event "Early-Titled-Tuesday-Blitz-April-02-2024"]
[Site "Chess.com"]
[Date "2024.04.02"]
[Round "4"]
[White "Sunny_Star"]
[Black "ChempionBg"]
[Result "0-1"]
[WhiteElo "2006"]
[BlackElo "2289"]
[TimeControl "180+1"]
[EndTime "8:38:42 PDT"]
[Termination "ChempionBg won by resignation"]

1. e4 {[%clk 0:02:56.2]} 1... c5 {[%clk 0:02:45]} 2. Nf3 {[%clk 0:02:54.2]} 2...
d6 {[%clk 0:02:43.3]} 3. d4 {[%clk 0:02:54.5]} 3... cxd4 {[%clk 0:02:38.5]} 4.
Nxd4 {[%clk 0:02:55]} 4... Nf6 {[%clk 0:02:38.8]} 5. Nc3 {[%clk 0:02:55.1]} 5...
a6 {[%clk 0:02:39.4]} 6. Bg5 {[%clk 0:02:51.2]} 6... Nbd7 {[%clk 0:02:38.6]} 7.
Qd2 {[%clk 0:02:45.5]} 7... e6 {[%clk 0:02:33.8]} 8. Nb3 {[%clk 0:02:35.3]} 8...
Be7 {[%clk 0:02:32.1]} 9. a4 {[%clk 0:02:34.4]} 9... O-O {[%clk 0:02:30.3]} 10.
a5 {[%clk 0:02:31.2]} 10... Nc5 {[%clk 0:02:28.6]} 11. Nxc5 {[%clk 0:02:27.7]}
11... dxc5 {[%clk 0:02:28.6]} 12. Bd3 {[%clk 0:02:19.3]} 12... e5 {[%clk
0:02:10]} 13. Na4 {[%clk 0:01:49.7]} 13... Be6 {[%clk 0:01:59.5]} 14. Nb6 {[%clk
0:01:48.9]} 14... Rb8 {[%clk 0:01:58.3]} 15. Qe2 {[%clk 0:01:36.4]} 15... Nd7
{[%clk 0:01:46.7]} 16. Bxe7 {[%clk 0:01:28.5]} 16... Qxe7 {[%clk 0:01:45.2]} 17.
Nc4 {[%clk 0:01:28.4]} 17... Qg5 {[%clk 0:01:29.7]} 18. O-O {[%clk 0:01:24.7]}
18... Nf6 {[%clk 0:01:00.9]} 19. Kh1 {[%clk 0:00:50.4]} 19... Ng4 {[%clk
0:00:46]} 20. f3 {[%clk 0:00:45.3]} 20... Nf6 {[%clk 0:00:29]} 21. g3 {[%clk
0:00:19.6]} 21... Rbd8 {[%clk 0:00:26.6]} 22. f4 {[%clk 0:00:17.1]} 22... exf4
{[%clk 0:00:24.1]} 23. gxf4 {[%clk 0:00:16.7]} 23... Qh6 {[%clk 0:00:22.3]} 24.
f5 {[%clk 0:00:15]} 24... Bxc4 {[%clk 0:00:22.3]} 25. Bxc4 {[%clk 0:00:14.5]}
25... Rd2 {[%clk 0:00:22.9]} 26. Rf2 {[%clk 0:00:04.5]} 26... Rxe2 {[%clk
0:00:22.1]} 27. Rxe2 {[%clk 0:00:04.9]} 27... Ng4 {[%clk 0:00:21.1]} 28. e5
{[%clk 0:00:04.9]} 28... Ne3 {[%clk 0:00:19.2]} 29. Rb1 {[%clk 0:00:04.6]} 29...
Nxc4 {[%clk 0:00:18.2]} 0-1